[Event "Karnataka State Open-ch 2018"]
[Site "Bengaluru"]
[Date "2018.04.18"]
[Round "10"]
[White "Rakshith R, Umesh"]
[Black "Kalki Eshwar D"]
[Result "1-0"]
[ECO "A48"]
[WhiteElo "1728"]
[BlackElo "1515"]
[Annotator "NA RC"]
[PlyCount "115"]
[EventDate "2018.??.??"]
[EventType "swiss"]
[EventCountry "IND"]
[SourceTitle "playchess.com"]
[Source "ChessBase"]
[SourceQuality "1"]
[TimeControl "5400+30"]

1. d4 {[%emt 0:00:00]} Nf6 {[%emt 0:00:08]} 2. Nf3 {[%emt 0:00:06]} g6 {[%emt 0:00:07]} 3. Bf4 {[%emt 0:00:36]} Bg7 {[%emt 0:00:08]} 4. e3 {[%emt 0:00:50]} d6 {[%emt 0:00:04]} 5. h3 {[%emt 0:00:39]} O-O {[%emt 0:00:04]} 6. Be2 {[%emt 0:00:37]} c5 {[%emt 0:00:03]} 7. c3 {[%emt 0:01:25]} Nc6 {[%emt 0:00:06]} 8. dxc5 {[%emt 0:02:28]} dxc5 {[%emt 0:00:13]} 9. Qxd8 {[%emt 0:05:49]} Rxd8 {[%emt 0:00:03]} 10. Nbd2 {[%emt 0:00:49]} b6 {[%emt 0:10:01]} 11. Ne5 {[%emt 0:12:35]} Nxe5 {[%emt 0:00:40]} 12. Bxe5 {[%emt 0:00:11]} Bb7 {[%emt 0:00:46]} 13. Bf3 {[%emt 0:01:27]} Bxf3 {[%emt 0:01:58]} 14. gxf3 {[%emt 0:02:27]} Nd5 {[%emt 0:05:06]} 15. Bxg7 {[%emt 0:06:34]} Kxg7 {[%emt 0:00:03]} 16. a4 Nc7 {[%emt 0:07:25]} 17. O-O-O {[%emt 0:09:29]} a6 {[%emt 0:04:50]} 18. Nc4 {[%emt 0:05:43]} Nd5 {[%emt 0:06:33]} 19. Rxd5 {[%emt 0:01:03]} Rxd5 {[%emt 0:00:34]} 20. Nxb6 {[%emt 0:00:07]} Rad8 {[%emt 0:00:16]} 21. Nxd5 {[%emt 0:00:18]} Rxd5 {[%emt 0:00:03]} 22. b4 {[%emt 0:02:07]} cxb4 23. cxb4 {[%emt 0:01:06]} Rf5 {[%emt 0:13:32]} 24. f4 {[%emt 0:00:35]} e5 {[%emt 0:00:07]} 25. Rd1 {[%emt 0:09:10]} exf4 {[%emt 0:00:29]} 26. e4 {[%emt 0:10:14]} Re5 {[%emt 0:01:08]} 27. f3 {[%emt 0:02:25]} Rh5 {[%emt 0:00:00]} 28. Rh1 Rg5 29. h4 {[%emt 0:09:01]} Rg2 {[%emt 0:01:32]} 30. b5 axb5 31. axb5 {[%emt 0:03:00]} Ra2 {[%emt 0:00:17]} 32. Rd1 {[%emt 0:00:23]} Ra8 {[%emt 0:21:09]} 33. Kc2 {[%emt 0:01:57]} Rb8 {[%emt 0:00:30]} 34. Rd5 {[%emt 0:00:06]} Kf6 {[%emt 0:02:16]} 35. Kc3 {[%emt 0:00:39]} h6 {[%emt 0:02:50]} 36. Kc4 {[%emt 0:00:36]} Ke6 {[%emt 0:01:38]} 37. Kc5 {[%emt 0:00:44]} Rc8+ 38. Kd4 {[%emt 0:01:27]} Rb8 {[%emt 0:02:25]} 39. e5 {[%emt 0:01:02]} Rb6 {[%emt 0:00:09]} 40. Rc5 {[%emt 0:00:55]} f6 {[%emt 0:04:06]} 41. exf6 {[%emt 0:01:04]} Kd7 {[%emt 0:11:51]} 42. f7 {[%emt 0:03:13]} Ke7 {[%emt 0:00:08]} 43. Rc7+ {[%emt 0:00:18]} Kf8 {[%emt 0:00:06]} 44. Kc5 {[%emt 0:00:08]} Rb8 {[%emt 0:00:08]} 45. b6 {[%emt 0:00:16]} g5 {[%emt 0:00:04]} 46. hxg5 {[%emt 0:00:31]} hxg5 {[%emt 0:00:10]} 47. b7 {[%emt 0:00:06]} g4 {[%emt 0:00:36]} 48. Rc8+ {[%emt 0:00:16]} Kxf7 {[%emt 0:00:05]} 49. Rxb8 {[%emt 0:00:20]} gxf3 {[%emt 0:00:06]} 50. Rf8+ {[%emt 0:00:28]} Kxf8 {[%emt 0:00:04]} 51. b8=Q+ {[%emt 0:00:05]} Kg7 {[%emt 0:00:05]} 52. Qxf4 {[%emt 0:00:05]} f2 {[%emt 0:00:06]} 53. Qxf2 {[%emt 0:00:04]} Kg6 {[%emt 0:00:03]} 54. Kd5 {[%emt 0:00:11]} Kg5 {[%emt 0:00:04]} 55. Ke5 {[%emt 0:00:06]} Kg4 {[%emt 0:00:06]} 56. Qg2+ {[%emt 0:00:09]} Kh4 {[%emt 0:00:09]} 57. Kf4 {[%emt 0:00:08]} Kh5 {[%emt 0:00:04]} 58. Qg5# {[%emt 0:00:04]} 1-0

[Event "Karnataka State Open-ch 2018"]
[Site "Bengaluru"]
[Date "2018.04.18"]
[Round "10"]
[White "Anand Vittal T R"]
[Black "Manjunath, J.."]
[Result "0-1"]
[ECO "D02"]
[WhiteElo "1624"]
[BlackElo "1986"]
[Annotator "NA RC"]
[PlyCount "66"]
[EventDate "2018.??.??"]
[EventType "swiss"]
[EventCountry "IND"]
[SourceTitle "playchess.com"]
[Source "ChessBase"]
[SourceQuality "1"]
[TimeControl "5400+30"]

{[%evp 11,65,-14,0,-19,-16,-41,-27,-52,-30,-15,-17,-12,-19,-33,-31,-40,-41,-72,-46,-131,-104,-79,-75,-60,-74,-217,-206,-199,-208,-219,-220,-232,-223,32767,32767,32767,32767,-258,-312,-304,-200,-274,-256,-244,32767,-249,-239,32767,32767,-243,-224,-545,-627,-916,-990,-29999]} 1. d4 {[%emt 0:00:00]} Nf6 {[%emt 0:00:17]} 2. Nf3 {[%emt 0:00:20]} d5 {[%emt 0:00:13]} 3. Bf4 {[%emt 0:01:27]} c5 {[%emt 0:00:41]} 4. e3 {[%emt 0:01:46]} Nc6 {[%emt 0:00:06]} 5. c3 {[%emt 0:00:32]} Qb6 {[%emt 0:00:34]} 6. Qc1 {[%emt 0:04:18]} Bf5 {[%emt 0:02:24]} 7. Nbd2 {[%emt 0:01:37] LiveBook: 62 Games} e6 {[%emt 0:00:14]} 8. Ne5 {[%emt 0:03:10] D02: 1 d4 d5 2 Nf3 sidelines, including 2...Nf6 3 g3 and 2...Nf6 3 Bf4} (8. a4 a6 9. Be2 Rc8 10. O-O Be7 11. a5 Qd8 12. dxc5 Bxc5 13. Nb3 Be7 14. Nbd4 Bg4 15. Nxc6 Rxc6 {1-0 (59) Firouzja,A (2499)-Wen,Y (2617) Bandar e Anzali 2017}) 8... Rc8 {[%emt 0:06:54]} 9. Nxc6 {[%emt 0:01:55]} Qxc6 $146 {[%emt 0:00:47]} ({Find the theoretical novelty and annotate with similar games:} 9... bxc6 10. Be2 cxd4 11. exd4 c5 12. dxc5 Bxc5 13. O-O O-O 14. Nb3 Bd6 {0-1 (44) Borda,A (2145)-Lekic,D (2402) Basel 2012}) 10. a4 {[%emt 0:00:40]} a6 {[%emt 0:00:02]} 11. Nf3 {[%emt 0:03:30]} Bd6 {[%emt 0:05:05]} 12. Ne5 {[%emt 0:02:22]} Qc7 {[%emt 0:00:25]} 13. Be2 {[%emt 0:09:55]} h6 {[%emt 0:03:46]} 14. Bg3 {[%emt 0:03:11]} Ne4 {[%emt 0:01:41]} 15. f4 {[%emt 0:02:32]} (15. Nf3 $15) 15... Bxe5 {[%emt 0:04:11]} 16. fxe5 {[%emt 0:01:05]} Nxg3 {[%emt 0:01:20]} 17. hxg3 {[%emt 0:00:02]} f6 {[%emt 0:00:24]} 18. exf6 {[%emt 0:10:25]} (18. g4 $17 Be4 19. exf6) 18... Qxg3+ {[%emt 0:00:23]} 19. Kd2 {[%emt 0:00:10] [#]} cxd4 $1 {[%emt 0:09:54]} ({Resist} 19... gxf6 20. dxc5 Rxc5 21. Qe1 $17) ({Not} 19... Qxg2 20. Rg1 $11) 20. exd4 {[%emt 0:02:29] [#]} Qg5+ $1 {[%emt 0:00:44]} ({Resist} 20... gxf6 21. Bf3) 21. Ke1 {[%emt 0:03:29]} Qxg2 {[%emt 0:01:07]} 22. Rf1 {[%emt 0:00:27]} Qg3+ {[%emt 0:00:18]} 23. Kd1 {[%emt 0:00:21]} gxf6 {[%emt 0:00:09]} 24. Rxf5 {[%emt 0:04:46]} exf5 {[%emt 0:01:08]} 25. Kc2 {[%emt 0:00:08]} Rc7 {[%emt 0:01:29]} 26. Kb3 {[%emt 0:01:27]} (26. Qh1 {was called for.}) 26... Re7 {[%emt 0:01:00]} 27. Bh5+ {[%emt 0:00:22]} Kd7 {[%emt 0:01:21]} 28. Qh1 {[%emt 0:00:46]} Kc6 {[%emt 0:02:28]} 29. Rg1 {[%emt 0:01:23]} Qd3 {[%emt 0:00:29]} 30. Rg6 {[%emt 0:01:55]} Rf8 {[%emt 0:01:03]} 31. Bf3 $2 {[%emt 0:03:13]} (31. Bd1 {nothing else works.}) 31... Qc4+ {[%emt 0:01:08]} 32. Ka3 {[%emt 0:04:50]} b5 {[%emt 0:00:13]} 33. Qxh6 {[%emt 0:06:39]} Qxa4# 0-1

[Event "Karnataka State Open-ch 2018"]
[Site "Bengaluru"]
[Date "2018.04.18"]
[Round "10"]
[White "Kaushik G Iyer"]
[Black "Reetish, Padhi"]
[Result "1-0"]
[ECO "A40"]
[WhiteElo "1586"]
[BlackElo "1915"]
[Annotator "NA RC"]
[PlyCount "69"]
[EventDate "2018.??.??"]
[EventType "swiss"]
[EventCountry "IND"]
[SourceTitle "playchess.com"]
[Source "ChessBase"]
[SourceQuality "1"]
[TimeControl "5400+30"]

{[%evp 8,65,20,17,26,20,26,29,27,23,32,7,18,13,41,27,35,27,43,19,6,10,51,50,52,42,79,65,60,79,75,63,32767,32767,32767,32767,187,184,32767,32767,187,269,32767,552,558,689,617,662,598,779,858,677,1133,1382,1236,1252,1000,1131,1162,1403]} 1. d4 {[%emt 0:00:00]} b6 {[%emt 0:00:08]} 2. c4 {[%emt 0:00:03]} Bb7 {[%emt 0:00:12]} 3. Nf3 {[%emt 0:00:27]} e6 {[%emt 0:00:15]} 4. g3 {[%emt 0:00:08]} Bb4+ {[%emt 0:08:32]} 5. Bd2 {[%emt 0:00:11]} Bxf3 {[%emt 0:02:29] A40: Unusual replies to 1 d4} 6. exf3 {[%emt 0:00:08]} Bxd2+ {[%emt 0:00:02]} 7. Nxd2 {[%emt 0:05:53]} ({Of course not} 7. Kxd2 Qf6 $15) (7. Qxd2 Nc6 8. f4 Qf6 9. d5 Nd4 10. Bg2 Rd8 11. Nc3 c5 12. O-O-O Nh6 13. Ne4 Qe7 14. Rhe1 Nhf5 15. Qc3 {0-1 (62) Aronian,L (2805)-Rapport,R (2707) Riadh 2017}) 7... Nf6 {[%emt 0:00:50] LiveBook: 4 Games} 8. Bg2 {[%emt 0:00:55]} O-O {[%emt 0:09:17]} 9. O-O {[%emt 0:01:42]} Nc6 {[%emt 0:02:08]} 10. f4 {[%emt 0:03:28]} d5 {[%emt 0:02:29]} 11. Nf3 {[%emt 0:01:00]} Ne7 $146 {[%emt 0:02:55]} ({Predecessor:} 11... Ne4 12. Ne5 Nxe5 13. fxe5 {1-0 (40) Gaede,D (2282)-Menzel,R (2208) Germany 2017}) 12. Ne5 {[%emt 0:01:21]} Rc8 13. c5 {[%emt 0:09:32]} bxc5 {[%emt 0:14:40]} 14. dxc5 {[%emt 0:00:08]} Qe8 {[%emt 0:03:06]} 15. b4 {[%emt 0:07:01]} Rb8 {[%emt 0:02:57]} 16. Rb1 {[%emt 0:00:27]} Nd7 {[%emt 0:07:50]} 17. Nxd7 {[%emt 0:07:28]} Qxd7 {[%emt 0:00:05]} 18. a4 {[%emt 0:00:18]} a6 {[%emt 0:07:26]} 19. Rb2 {[%emt 0:02:46]} Nc6 {[%emt 0:03:55]} 20. Qd2 {[%emt 0:00:12]} a5 {[%emt 0:07:01]} 21. b5 {[%emt 0:00:13]} Nb4 {[%emt 0:01:03]} 22. Rxb4 {[%emt 0:12:37]} axb4 {[%emt 0:00:04]} 23. Qxb4 {[%emt 0:00:04]} Rfd8 {[%emt 0:00:50]} 24. Rb1 {[%emt 0:02:38]} c6 {[%emt 0:01:06]} 25. b6 {[%emt 0:00:08]} d4 {[%emt 0:00:11]} 26. a5 {[%emt 0:01:40]} d3 {[%emt 0:00:28]} 27. a6 {[%emt 0:08:01]} d2 {[%emt 0:02:54]} 28. Rd1 {[%emt 0:00:17]} h6 {[%emt 0:02:03]} 29. h4 {[%emt 0:11:43]} Qd3 {[%emt 0:00:42]} 30. a7 {[%emt 0:00:31]} Ra8 {[%emt 0:00:24]} 31. Rxd2 {[%emt 0:00:47]} Qxd2 {[%emt 0:00:17]} 32. Qxd2 {[%emt 0:00:03]} Rxd2 {[%emt 0:00:17]} 33. Bxc6 $18 {[%emt 0:00:04]} Rdd8 {[%emt 0:00:43]} 34. Bxa8 {[%emt 0:00:13]} Rxa8 {[%emt 0:00:01]} 35. b7 1-0

[Event "Karnataka State Open-ch 2018"]
[Site "Bengaluru"]
[Date "2018.04.18"]
[Round "10"]
[White "Shree Krishna Pranama"]
[Black "Sridharan Ramanathan"]
[Result "1-0"]
[ECO "E97"]
[WhiteElo "1572"]
[BlackElo "1997"]
[Annotator "NA RC"]
[PlyCount "113"]
[EventDate "2018.??.??"]
[EventType "swiss"]
[EventCountry "IND"]
[SourceTitle "playchess.com"]
[Source "ChessBase"]
[SourceQuality "1"]
[TimeControl "5400+30"]

{[%evp 10,113,49,38,35,32767,32767,32767,32767,32767,43,9,42,32767,32767,32767,32767,32767,32767,6,72,51,70,72,84,64,53,41,28,37,38,0,20,-15,0,-33,32767,-195,-29,-63,32767,32767,-180,32767,-277,-624,32767,-643,-14,0,0,-2,-22,-2,0,-347,-283,-431,-474,-459,-436,-440,-465,-427,0,0,458,543,644,636,623,340,549,102,128,0,60,-133,15,0,25,0,316,175,386,360,583,655,725,604,251,976,1397,1239,2043,772,2185,5404,2729,1076,1014,1046,1013,1045,1063,2212]} 1. d4 {[%emt 0:00:00]} Nf6 {[%emt 0:00:16]} 2. c4 {[%emt 0:00:00]} g6 {[%emt 0:00:08]} 3. Nc3 {[%emt 0:00:03]} Bg7 {[%emt 0:00:10]} 4. Nf3 {[%emt 0:00:06]} d6 {[%emt 0:00:06]} 5. e4 {[%emt 0:00:04]} O-O {[%emt 0:00:12]} 6. Be2 {[%emt 0:00:02]} e5 {[%emt 0:00:32]} 7. O-O {[%emt 0:00:03]} Nc6 {[%emt 0:00:08]} 8. d5 {[%emt 0:00:04]} Ne7 {[%emt 0:00:08]} 9. b4 {[%emt 0:00:03]} Ne8 {[%emt 0:01:34]} 10. c5 {[%emt 0:00:02] LiveBook: 260 Games} f5 {[%emt 0:00:19]} 11. Nd2 {[%emt 0:01:00]} f4 {[%emt 0:01:59]} 12. Bg4 {[%emt 0:00:55]} Nf6 {[%emt 0:05:00]} 13. Bxc8 {[%emt 0:00:28]} Rxc8 {[%emt 0:00:18]} 14. f3 {[%emt 0:00:33]} (14. Ba3 $16) 14... g5 {[%emt 0:00:15]} (14... c6 $11) 15. a4 {[%emt 0:02:24]} h5 {[%emt 0:00:07]} 16. Ba3 {[%emt 0:01:11]} g4 {[%emt 0:00:27]} 17. b5 {[%emt 0:10:53]} Ng6 {[%emt 0:01:45]} 18. Qe1 {[%emt 0:09:42]} Rf7 {[%emt 0:07:00]} 19. Nc4 {[%emt 0:06:31]} Bf8 {[%emt 0:00:23]} 20. Na5 {[%emt 0:02:18]} Rb8 $1 {[%emt 0:05:28]} 21. Nb3 {[%emt 0:10:47]} Rg7 {[%emt 0:02:02]} 22. a5 {[%emt 0:04:18]} Nh7 {[%emt 0:07:33]} 23. Na4 {[%emt 0:09:28] [#]} (23. Kh1 $15) 23... Qg5 {[%emt 0:08:01]} ({Better is} 23... gxf3 $1 $19 24. Rxf3 Nh4) 24. Ra2 {[%emt 0:01:32]} gxf3 {[%emt 0:08:29]} 25. Rxf3 {[%emt 0:00:08]} Nh4 {[%emt 0:03:04]} 26. Rff2 {[%emt 0:00:47]} Nf6 {[%emt 0:01:51]} 27. h3 $2 {[%emt 0:20:32]} (27. Kh1 $17) 27... Qg3 {[%emt 0:03:12]} 28. Qc3 {[%emt 0:05:27]} Qxf2+ $2 {[%emt 0:10:41]} (28... f3 $19 29. cxd6 Nxe4 30. dxc7 Rc8) 29. Rxf2 {[%emt 0:01:07]} Nxe4 {[%emt 0:01:08]} 30. Qc4 {[%emt 0:04:44]} Nxf2 {[%emt 0:00:43]} 31. Kxf2 {[%emt 0:00:02]} Rxg2+ {[%emt 0:00:08]} 32. Kf1 $2 {[%emt 0:00:08] [#]} (32. Ke1 $11) 32... Nf5 $1 {[%emt 0:09:42]} 33. Bc1 $2 {[%emt 0:01:54]} (33. Qc3 Rg3 34. Qb4 Ne3+ 35. Kf2) 33... f3 {[%emt 0:00:28]} 34. Ke1 {[%emt 0:05:34]} f2+ {[%emt 0:02:26]} 35. Kf1 {[%emt 0:00:49]} Rh2 {[%emt 0:03:33]} 36. Bf4 {[%emt 0:02:24] [#]} ({Wrong is} 36. Qd3 $2 {[#]} e4 $1 {[%mdl 512]}) 36... exf4 $2 {[%emt 0:00:37]} (36... Re8 $1 $19 {[%mdl 512]} 37. Bxh2 Ne3+ 38. Kxf2 Nxc4) 37. Qxf4 {[%emt 0:00:02]} Re8 $2 {[%emt 0:00:27]} (37... Rh1+ $1 $11 {and Black is okay.} 38. Kxf2 Bh6) 38. Qxh2 {[%emt 0:01:23]} Re3 {[%emt 0:05:56]} 39. Kxf2 {[%emt 0:01:26]} Rxb3 {[%emt 0:06:05]} 40. Qg1+ {[%emt 0:00:17]} Ng3 {[%emt 0:02:11]} 41. Qd1 $2 {[%emt 0:00:38]} (41. b6 $18 {and White stays clearly on top.} axb6 42. axb6 cxb6 43. c6) 41... Ne4+ {[%emt 0:00:13] [#]} 42. Kg2 {[%emt 0:00:37]} (42. Ke2 $1 $16 Rxh3 43. b6 axb6 44. axb6 cxb6 45. c6) 42... Rg3+ {[%emt 0:00:43]} 43. Kh2 $2 {[%emt 0:00:16] [#]} ({White must play} 43. Kf1 $11 Rxh3 $1 $11 44. Qc2 Rf3+ 45. Kg1 Rg3+ 46. Kh2 Rg4) 43... Rxh3+ $2 {[%emt 0:00:46]} (43... Bg7 $1 $19 {[%cal Rg7e5]} 44. Qe1 (44. Qxh5 $2 Be5 $19) 44... Be5) 44. Kg2 {[%emt 0:00:39]} Rg3+ {[%emt 0:00:06]} 45. Kf1 {[%emt 0:00:26]} Rg4 $2 {[%emt 0:02:04]} ({Don't play} 45... dxc5 $6 46. d6 $16) 46. c6 {[%emt 0:00:18]} (46. b6 $142 axb6 47. c6 bxc6 48. axb6 Rf4+ 49. Ke1 cxb6 50. dxc6) 46... bxc6 $2 {[%emt 0:00:50]} (46... b6 $16) 47. dxc6 {[%emt 0:00:01]} Rf4+ {[%emt 0:06:56]} 48. Kg1 {[%emt 0:00:09]} Bg7 {[%emt 0:01:11]} 49. Qd5+ {[%emt 0:01:37]} Kf8 {[%emt 0:00:09]} 50. b6 {[%emt 0:00:22]} Rg4+ {[%emt 0:00:53]} 51. Kf1 {[%emt 0:00:13]} Rf4+ {[%emt 0:01:26]} 52. Ke1 {[%emt 0:00:05]} axb6 {[%emt 0:00:57]} 53. axb6 {[%emt 0:00:01]} Nf6 {[%emt 0:01:13]} 54. Qd2 {[%emt 0:01:19]} (54. Qe6 $142 Ne8 55. bxc7) 54... Re4+ {[%emt 0:00:51]} 55. Kf1 {[%emt 0:00:17]} cxb6 {[%emt 0:00:13]} 56. Qxd6+ {[%emt 0:00:08]} Kg8 {[%emt 0:00:31]} 57. c7 $18 {[%emt 0:00:07]} 1-0

[Event "Karnataka State Open-ch 2018"]
[Site "Bengaluru"]
[Date "2018.04.18"]
[Round "10"]
[White "Gajanan D"]
[Black "Malla, Nooka Raju"]
[Result "0-1"]
[ECO "D04"]
[WhiteElo "1538"]
[BlackElo "1969"]
[Annotator "NA RC"]
[PlyCount "96"]
[EventDate "2018.??.??"]
[EventType "swiss"]
[EventCountry "IND"]
[SourceTitle "playchess.com"]
[Source "ChessBase"]
[SourceQuality "1"]
[TimeControl "5400+30"]

{[%evp 8,96,8,11,20,18,12,-7,32767,32767,32767,32767,-34,-46,-45,-56,-13,-22,8,-34,-24,-29,-32,-68,-31,-73,-38,-46,-24,-26,-30,-23,85,97,108,32767,32767,32767,32767,108,32767,77,97,32767,32767,4,-23,0,32767,0,0,0,0,0,0,0,0,0,0,0,0,-29,0,-26,0,-7,-12,-16,0,0,0,0,0,0,0,-55,0,-156,-68,-63,-73,-183,-191,-275,-170,-187,-202,-5722,-29965,-6249,-6249]} 1. d4 {[%emt 0:02:31]} d5 {[%emt 0:00:11]} 2. Nf3 {[%emt 0:01:08]} Nf6 {[%emt 0:00:22]} 3. e3 {[%emt 0:00:18]} Bg4 {[%emt 0:02:03]} 4. Be2 {[%emt 0:01:30]} e6 {[%emt 0:00:16]} 5. O-O {[%emt 0:00:51] LiveBook: 11 Games} Be7 {[%emt 0:02:03] D04: Colle System} (5... c5 6. b3 Nc6 7. Bb2 cxd4 8. Nxd4 Bxe2 9. Qxe2 Rc8 10. Rc1 Be7 11. c4 O-O 12. Nd2 Qa5 13. Nxc6 Rxc6 14. e4 dxc4 15. Nxc4 {0-1 (50) Saric,S (2401)-Kadric,D (2470) Bol 2013}) 6. Nbd2 {[%emt 0:02:01]} O-O {[%emt 0:02:25]} 7. Ne5 {[%emt 0:03:19]} Bxe2 {[%emt 0:05:19]} 8. Qxe2 {[%emt 0:00:05]} Nbd7 {[%emt 0:00:16]} 9. f4 {[%emt 0:00:16]} c5 {[%emt 0:03:12]} 10. c3 {[%emt 0:01:02]} Qc7 {[%emt 0:07:32]} 11. Rf3 {[%emt 0:05:43]} Rfe8 $146 {[%emt 0:13:05]} ({Predecessor:} 11... Ne4 12. Nxe4 dxe4 13. Rh3 Nxe5 14. fxe5 g6 15. Bd2 b5 {½-½ (26) Joyce,J (2205)-Cafolla,P (2070) Dublin 1997}) 12. Rh3 {[%emt 0:02:41]} Bf8 {[%emt 0:00:42]} 13. Ndf3 {[%emt 0:03:07]} Ne4 {[%emt 0:01:10]} 14. Nxd7 {[%emt 0:16:48]} Qxd7 {[%emt 0:00:28]} 15. Bd2 {[%emt 0:00:34]} Nf6 {[%emt 0:03:32]} 16. Rf1 {[%emt 0:01:49]} g6 {[%emt 0:04:44]} 17. Be1 {[%emt 0:01:14]} cxd4 {[%emt 0:03:15]} 18. exd4 {[%emt 0:00:18]} Bg7 {[%emt 0:00:43]} 19. Bh4 {[%emt 0:04:21]} Nh5 {[%emt 0:02:12]} (19... Ne4 $11 {remains equal.}) 20. Ne5 {[%emt 0:00:48]} Qc7 {[%emt 0:03:29]} 21. g4 {[%emt 0:04:50]} Nf6 {[%emt 0:00:47]} 22. Bxf6 Bxf6 {[%emt 0:00:43]} 23. g5 {[%emt 0:01:18]} Bg7 {[%emt 0:03:14]} 24. Ng4 {[%emt 0:08:10]} Qe7 {[%emt 0:01:09]} 25. Qf2 {[%emt 0:02:45]} f5 {[%emt 0:01:44]} 26. Nh6+ {[%emt 0:02:40]} (26. gxf6 $5 Bxf6 27. Re3 $14) 26... Kf8 {[%emt 0:07:13]} 27. Re1 {[%emt 0:01:04]} Qd6 {[%emt 0:00:37]} 28. Rhe3 {[%emt 0:00:50]} Re7 {[%emt 0:03:27]} 29. h4 {[%emt 0:05:42]} Rae8 {[%emt 0:00:33]} 30. Kg2 {[%emt 0:00:31]} b5 {[%emt 0:02:43]} 31. a3 {[%emt 0:00:19]} a5 {[%emt 0:00:39]} 32. Kg3 {[%emt 0:00:34]} b4 {[%emt 0:00:23]} 33. axb4 {[%emt 0:00:08]} axb4 {[%emt 0:00:07]} 34. Qd2 {[%emt 0:00:53]} Qb6 {[%emt 0:00:48]} 35. Qd3 {[%emt 0:03:54]} Qc6 {[%emt 0:04:21]} 36. Ra1 {[%emt 0:04:21]} ({Reject} 36. cxb4 Qb6 $17) 36... bxc3 {[%emt 0:04:09]} 37. bxc3 {[%emt 0:00:06]} Qb7 {[%emt 0:00:16]} 38. Ra5 {[%emt 0:06:50]} Qb2 {[%emt 0:01:49]} 39. Rb5 {[%emt 0:01:53]} Qc1 {[%emt 0:00:23]} 40. Rb1 {[%emt 0:00:22]} Qa3 {[%emt 0:00:15]} 41. Rbe1 {[%emt 0:01:56]} Rc8 {[%emt 0:00:57]} 42. Kf3 $2 {[%emt 0:03:52] [#]} (42. Kg2 $11) 42... Rec7 {[%emt 0:00:40]} ({Black should try} 42... Rb7 $1 $19 43. Rb1 Rbc7) 43. Qb5 {[%emt 0:00:48]} Rxc3 {[%emt 0:02:36]} 44. Qd7 {[%emt 0:01:15]} (44. Qb6 $15 R3c6 45. Rxa3 (45. Qb7 $2 Qe7 $19) 45... Rxb6 46. Ra4) 44... Qe7 {[%emt 0:00:18]} 45. Qxe7+ {[%emt 0:03:16]} Kxe7 {[%emt 0:00:20]} 46. Rd1 {[%emt 0:00:22]} R8c4 {[%emt 0:02:40]} 47. Ra1 $2 {[%emt 0:01:38]} (47. Rxc3 Rxc3+ 48. Kg2) 47... Rxe3+ {[%emt 0:00:18]} 48. Kxe3 {[%emt 0:00:09]} Bxd4+ {[%emt 0:00:06]} 0-1

[Event "Karnataka State Open-ch 2018"]
[Site "Bengaluru"]
[Date "2018.04.18"]
[Round "10"]
[White "Arvind, Ramnath Iyer"]
[Black "Kishan, Gangolli"]
[Result "1/2-1/2"]
[ECO "C01"]
[WhiteElo "1519"]
[BlackElo "1974"]
[Annotator "NA RC"]
[PlyCount "41"]
[EventDate "2018.??.??"]
[EventType "swiss"]
[EventCountry "IND"]
[SourceTitle "playchess.com"]
[Source "ChessBase"]
[SourceQuality "1"]
[TimeControl "5400+30"]

1. e4 e6 2. d4 d5 3. exd5 exd5 4. Nf3 Nc6 5. Bf4 Bd6 6. Bxd6 Qxd6 7. Bd3 Nge7 8. O-O Bg4 9. c3 b6 10. Nbd2 g5 (10... O-O $11 {keeps the balance.}) 11. Qa4 Bd7 12. Qc2 O-O-O 13. b4 $14 (13. Nxg5 $16 Qf6 14. Ngf3 (14. Nxh7 Qh6 $11)) 13... Ng6 14. b5 Nce7 15. c4 dxc4 16. Nxc4 Qf4 17. Rac1 Kb8 18. Rfe1 Bxb5 19. Nb2 Rd7 20. Bf5 Qxf5 21. Nd3 1/2-1/2